fUSD/lending_fUSD_20251225
["ID","MTS","AMOUNT","RATE_DAILY","PERIOD"]
[399812057,1766692672583,-102.31,0.00012559,2]
[399812058,1766692672607,-47.69,0.0001256,2]
[399812061,1766692747628,500.0,0.000119,2]
[399812062,1766692786902,50000.0,0.00032877,120]
[399812063,1766692792604,50000.0,0.00032877,120]
[399812064,1766692827371,504.31075142,0.0003287,120]
[399812065,1766692863362,600.0,0.0003287,120]
[399812066,1766692864434,600.0,0.0003287,120]
[399812067,1766692865548,600.0,0.0003287,120]
[399812068,1766692866792,600.0,0.0003287,120]
[399812069,1766692868137,600.0,0.0003287,120]
[399812070,1766692869446,600.0,0.0003287,120]
[399812071,1766692870902,600.0,0.0003287,120]
[399812072,1766692872154,600.0,0.0003287,120]
[399812073,1766692873501,600.0,0.0003287,120]
[399812074,1766692874906,600.0,0.0003287,120]
[399812075,1766692876063,600.0,0.0003287,120]
[399812076,1766692877387,600.0,0.0003287,120]
[399812077,1766692879122,600.0,0.0003287,120]
[399812078,1766692879831,600.0,0.0003287,120]
[399812079,1766692881197,600.0,0.0003287,120]
[399812080,1766692882398,400.02,0.0003287,120]
[399812086,1766693137941,-595.51685364,0.00012055,2]
[399812087,1766693144740,579.08057,0.00011994,2]
[399812088,1766693151921,522.5317942,0.0003287,120]
[399812089,1766693297340,43163.47,0.00011935,2]
[399812090,1766693373136,-1666.07314636,0.00012055,2]
[399812091,1766693373161,-14.27125584,0.00012149,2]
[399812092,1766693408157,500.0,0.000119,2]
[399812096,1766693431437,-180.72874416,0.00012149,2]
[399812097,1766693431447,-249.0,0.00012149,2]
[399812098,1766693431458,-4825.48,0.00012243,2]
[399812099,1766693431468,-195.0,0.00012327,2]
[399812100,1766693431478,-1600.0,0.00012444,2]
[399812101,1766693431488,-1200.0,0.00012445,2]
[399812102,1766693431498,-1200.0,0.00012446,2]
[399812103,1766693431508,-300.0,0.00012447,2]
[399812104,1766693431518,-300.0,0.00012447,2]
[399812105,1766693431528,-500.0,0.00012448,2]
[399812106,1766693431538,-236.0434,0.00012552,2]
[399812107,1766693431547,-150.0,0.00012558,2]
[399812108,1766693431557,-14.12248698,0.00012559,2]
[399812109,1766693431570,-485.87751302,0.00012559,2]
[399812110,1766693431581,-500.0,0.00012559,2]
[399812111,1766693431590,-500.0,0.00012559,2]
[399812112,1766693431600,-540.78446976,0.00012559,2]
[399812113,1766693431610,-500.0,0.00012559,2]
[399812115,1766693431621,-500.0,0.00012559,2]
[399812117,1766693431631,-500.0,0.00012559,2]
[399812118,1766693431640,-500.0,0.00012559,2]
[399812120,1766693431650,-500.0,0.00012559,2]
[399812122,1766693431660,-233.50446408,0.0001256,2]
[399812124,1766693431669,-159.19013413,0.0001256,2]
[399812127,1766693431679,-151.0,0.0001256,2]
[399812131,1766693431688,-2500.0,0.0001256,2]
[399812135,1766693431697,-1842.14341901,0.0001256,2]
[399812138,1766693431710,-328.4750411,0.0001256,2]
[399812143,1766693431722,-812.75505295,0.0001256,2]
[399812146,1766693431733,-1047.38725016,0.0001256,2]
[399812153,1766693437448,-2041.02769881,0.0001256,2]
[399812154,1766693437515,-1043.35,0.0001256,2]
[399812155,1766693437576,-435.68171857,0.0001256,2]
[399812156,1766693437589,-651.60435838,0.0001256,2]
[399812157,1766693437630,-24450.91813764,0.0001256,2]
[399812158,1766693437644,-151.0,0.0001256,2]
[399812159,1766693437661,-200.0,0.00012652,2]
[399812160,1766693437672,-151.0,0.00012652,2]
[399812161,1766693437684,-151.0,0.00012652,2]
[399812162,1766693437695,-151.0,0.00012652,2]
[399812163,1766693437706,-151.0,0.00012652,2]
[399812164,1766693437717,-151.0,0.00012652,2]
[399812165,1766693437729,-151.0,0.00012652,2]
[399812166,1766693437740,-151.0,0.00012652,2]
[399812167,1766693437751,-151.0,0.00012652,2]
[399812169,1766693437762,-151.0,0.00012652,2]
[399812171,1766693437772,-151.0,0.00012652,2]
[399812173,1766693437783,-151.0,0.00012652,2]
[399812176,1766693437794,-200.0,0.00012652,2]
[399812178,1766693437804,-500.0,0.00012652,2]
[399812180,1766693437815,-207.4,0.00012652,2]
[399812182,1766693437826,-1000.0,0.00012659,2]
[399812184,1766693437837,-2114.933,0.00012659,2]
[399812186,1766693437848,-176.38,0.00012659,2]
[399812187,1766693437859,-1454.3177,0.0001276,2]
[399812188,1766693437870,-1000.0,0.0001276,2]
[399812189,1766693437882,-299.97259139,0.00012846,2]
[399812190,1766693437894,-402.31,0.00012927,2]
[399812191,1766693437905,-32653.34267656,0.00013042,2]
[399812192,1766693437915,-200.0,0.000132,2]
[399812193,1766693437926,-200.0,0.000132,2]
[399812194,1766693437938,-500.0,0.000132,2]
[399812195,1766693437950,-500.0,0.00013231,2]
[399812197,1766693437961,-253.89659033,0.00013231,2]
[399812199,1766693437971,-348.55219172,0.00013231,2]
[399812201,1766693437982,-209.00701748,0.00013231,2]
[399812202,1766693437994,-182.19324559,0.00013232,2]
[399812204,1766693438005,-150.0,0.00013232,2]
[399812205,1766693438015,-150.0,0.00013232,2]
[399812206,1766693438026,-500.0,0.00013232,2]
[399812207,1766693438037,-500.0,0.00013232,2]
[399812208,1766693438049,-150.0,0.00013232,2]
[399812209,1766693438060,-150.0,0.00013232,2]
[399812210,1766693438071,-150.0,0.00013232,2]
[399812211,1766693438082,-211.53123489,0.00013232,2]
[399812212,1766693438094,-150.0,0.00013232,2]
[399812213,1766693438104,-150.0,0.00013232,2]
[399812214,1766693438115,-150.0,0.00013232,2]
[399812215,1766693438127,-3986.0,0.00013232,2]
[399812216,1766693438139,-155.43606442,0.00013232,2]
[399812217,1766693438150,-500.0,0.00013232,2]
[399812218,1766693438161,-150.0,0.00013232,2]
[399812219,1766693438172,-150.37408833,0.00013232,2]
[399812220,1766693438182,-150.0,0.00013232,2]
[399812221,1766693438193,-150.0,0.00013232,2]
[399812222,1766693438204,-150.0,0.00013232,2]
[399812223,1766693438215,-150.0,0.00013232,2]
[399812224,1766693438226,-150.0,0.00013232,2]
[399812225,1766693438238,-500.0,0.00013232,2]
[399812226,1766693438249,-201.45857649,0.00013232,2]
[399812227,1766693438260,-500.0,0.00013232,2]
[399812228,1766693438272,-153.11613946,0.00013232,2]
[399812229,1766693438284,-500.0,0.00013232,2]
[399812231,1766693438295,-183.30569166,0.00013232,2]
[399812232,1766693438307,-150.0,0.00013232,2]
[399812233,1766693438319,-150.0,0.00013232,2]
[399812234,1766693438330,-150.0,0.00013232,2]
[399812235,1766693438342,-150.0,0.00013232,2]
[399812236,1766693438358,-150.0,0.00013232,2]
[399812237,1766693438370,-150.0,0.00013232,2]
[399812238,1766693438381,-150.0,0.00013232,2]
[399812239,1766693438395,-150.0,0.00013259,2]
[399812240,1766693438408,-150.0,0.00013259,2]
[399812241,1766693438419,-500.0,0.00013259,2]
[399812242,1766693438430,-500.0,0.00013259,2]
[399812243,1766693438441,-150.0,0.00013259,2]
[399812244,1766693438453,-150.0,0.00013259,2]
[399812245,1766693438465,-150.0,0.00013259,2]
[399812246,1766693438477,-150.0,0.00013259,2]
[399812247,1766693438488,-206.73241597,0.00013259,2]
[399812248,1766693438500,-150.0,0.00013259,2]
[399812249,1766693438511,-3986.0,0.00013259,2]
[399812250,1766693438522,-500.0,0.00013259,2]
[399812251,1766693438532,-150.0,0.00013259,2]
[399812252,1766693438543,-150.0,0.00013259,2]
[399812253,1766693438553,-150.0,0.00013259,2]
[399812254,1766693438565,-157.32824713,0.00013259,2]
[399812255,1766693438576,-151.45388092,0.00013259,2]
[399812256,1766693438587,-607.3149885,0.00013259,2]
[399812257,1766693438598,-500.0,0.00013259,2]
[399812258,1766693438609,-500.0,0.00013259,2]
[399812259,1766693438620,-150.0,0.00013259,2]
[399812260,1766693438631,-150.0,0.00013259,2]
[399812261,1766693438641,-150.0,0.00013259,2]
[399812262,1766693438652,-196.78575381,0.00013259,2]
[399812263,1766693438663,-150.0,0.00013259,2]
[399812264,1766693438673,-195.0,0.0001326,2]
[399812265,1766693438684,-250.0,0.0001326,2]
[399812266,1766693438694,-240.69967108,0.0001326,2]
[399812267,1766693438705,-250.0,0.0001326,2]
[399812268,1766693438716,-195.0,0.0001326,2]
[399812269,1766693438727,-250.0,0.0001326,2]
[399812270,1766693438738,-150.0,0.00013287,2]
[399812271,1766693438749,-150.0,0.00013287,2]
[399812272,1766693438759,-582.43858488,0.00013287,2]
[399812273,1766693438770,-599.94054943,0.00013287,2]
[399812274,1766693438780,-223.15728325,0.00013287,2]
[399812275,1766693438792,-157.48586549,0.00013287,2]
[399812276,1766693438803,-164.60175137,0.00013287,2]
[399812277,1766693438814,-150.0,0.00013287,2]
[399812278,1766693438825,-232.01120025,0.00013287,2]
[399812279,1766693438836,-3986.0,0.00013287,2]
[399812280,1766693438847,-500.0,0.00013287,2]
[399812281,1766693438858,-150.0,0.00013287,2]
[399812282,1766693438868,-234.58561576,0.00013287,2]
[399812283,1766693438879,-205.7805094,0.00013287,2]
[399812284,1766693438891,-500.0,0.00013287,2]
[399812285,1766693438902,-500.0,0.00013287,2]
[399812286,1766693438913,-150.0,0.00013287,2]
[399812287,1766693438924,-200.0,0.00013287,2]
[399812288,1766693438934,-200.0,0.00013287,2]
[399812289,1766693438945,-176.0,0.00013287,2]
[399812290,1766693438956,-193.07365104,0.00013314,2]
[399812291,1766693438969,-150.0,0.00013314,2]
[399812292,1766693438980,-150.0,0.00013314,2]
[399812293,1766693438992,-3986.0,0.00013314,2]
[399812294,1766693439005,-500.0,0.00013314,2]
[399812295,1766693439301,-150.0,0.00013314,2]
[399812296,1766693439318,-500.0,0.00013314,2]
[399812297,1766693439329,-500.0,0.00013314,2]
[399812298,1766693439339,-150.0,0.00013314,2]
[399812299,1766693439353,-402.31,0.00013318,2]
[399812300,1766693439364,-232.18436554,0.00013342,2]
[399812301,1766693439374,-237.96567744,0.00013342,2]
[399812302,1766693439384,-3986.0,0.00013342,2]
[399812303,1766693439395,-500.0,0.00013342,2]
[399812304,1766693439406,-150.82734528,0.00013342,2]
[399812305,1766693439416,-500.0,0.00013342,2]
[399812306,1766693439426,-500.0,0.00013342,2]
[399812307,1766693439437,-195.0,0.00013364,2]
[399812308,1766693439447,-3986.0,0.00013369,2]
[399812309,1766693439457,-500.0,0.00013369,2]
[399812310,1766693439466,-633.0,0.00013369,2]
[399812311,1766693439476,-500.0,0.00013369,2]
[399812312,1766693439486,-3986.0,0.00013396,2]
[399812313,1766693439496,-500.0,0.00013396,2]
[399812314,1766693439507,-500.0,0.00013396,2]
[399812315,1766693439517,-3986.0,0.00013424,2]
[399812316,1766693439527,-500.0,0.00013424,2]
[399812317,1766693439537,-500.0,0.00013424,2]
[399812318,1766693439547,-3986.0,0.00013451,2]
[399812319,1766693439557,-397.35279565,0.00013451,2]
[399812320,1766693439567,-500.0,0.00013451,2]
[399812321,1766693439577,-3986.0,0.00013479,2]
[399812322,1766693439587,-500.0,0.00013479,2]
[399812323,1766693439596,-3986.0,0.00013506,2]
[399812324,1766693439606,-500.0,0.00013506,2]
[399812325,1766693439616,-32653.34267656,0.00013524,2]
[399812326,1766693439626,-3986.0,0.00013533,2]
[399812327,1766693439636,-3986.0,0.00013561,2]
[399812328,1766693439646,-3986.0,0.00013588,2]
[399812329,1766693439656,-3986.0,0.00013616,2]
[399812330,1766693439666,-3986.0,0.00013643,2]
[399812331,1766693439675,-255.0,0.00013651,2]
[399812332,1766693439685,-790.0,0.00013657,2]
[399812333,1766693439695,-420.0,0.00013658,2]
[399812334,1766693439704,-420.0,0.00013658,2]
[399812335,1766693439714,-268.61,0.00013659,2]
[399812336,1766693439723,-3986.0,0.0001367,2]
[399812337,1766693439735,-1680.0,0.0001369,2]
[399812338,1766693439744,-3986.0,0.00013698,2]
[399812339,1766693439755,-289.9076874,0.00013698,2]
[399812340,1766693439764,-500.0,0.00013698,2]
[399812341,1766693439774,-579.81774733,0.00013698,2]
[399812342,1766693439784,-500.0,0.00013698,2]
[399812343,1766693439794,-500.0,0.00013698,2]
[399812344,1766693439803,-500.0,0.00013698,2]
[399812345,1766693439814,-500.0,0.00013698,2]
[399812346,1766693439824,-500.0,0.00013698,2]
[399812347,1766693439833,-500.0,0.00013698,2]
[399812348,1766693439843,-500.0,0.00013698,2]
[399812349,1766693439853,-646.48024776,0.00013698,2]
[399812350,1766693439863,-500.0,0.00013698,2]
[399812351,1766693439873,-500.0,0.00013698,2]
[399812352,1766693439883,-183.93452706,0.00013698,2]
[399812353,1766693439893,-435.0169277,0.00013698,2]
[399812354,1766693439903,-500.0,0.00013698,2]
[399812356,1766693439913,-500.0,0.00013698,2]
[399812357,1766693439923,-287.65,0.00013698,2]
[399812358,1766693439933,-500.0,0.00013698,2]
[399812359,1766693439943,-534.14774107,0.00013698,2]
[399812360,1766693439952,-500.0,0.00013698,2]
[399812361,1766693439962,-500.0,0.00013698,2]
[399812362,1766693439971,-500.0,0.00013698,2]
[399812363,1766693439982,-500.0,0.00013698,2]
[399812364,1766693439992,-543.83,0.00013698,2]
[399812365,1766693440002,-543.83,0.00013698,2]
[399812366,1766693440012,-543.83,0.00013698,2]
[399812367,1766693440022,-543.83,0.00013698,2]
[399812368,1766693440031,-200.0,0.00013699,2]
[399812369,1766693440041,-177.52316721,0.00013699,2]
[399812370,1766693440051,-402.31,0.0001371,2]
[399812371,1766693440062,-3986.0,0.00013725,2]
[399812372,1766693440072,-200.0,0.00013748,2]
[399812373,1766693440082,-200.0,0.00013748,2]
[399812374,1766693440092,-500.0,0.00013748,2]
[399812375,1766693440103,-3986.0,0.00013753,2]
[399812376,1766693440112,-1852.42,0.00013772,2]
[399812377,1766693440123,-3986.0,0.0001378,2]
[399812378,1766693440133,-3986.0,0.00013807,2]
[399812379,1766693440142,-3986.0,0.00013835,2]
[399812380,1766693440152,-3986.46922588,0.00013862,2]
[399812381,1766693440162,-1945.07,0.00013914,2]
[399812382,1766693440173,-287.65,0.00013972,2]
[399812383,1766693440183,-285.92,0.00013997,2]
[399812384,1766693440194,-1600.0,0.00013999,2]
[399812385,1766693440204,-32653.34267656,0.00014007,2]
[399812386,1766693440213,-402.31,0.00014102,2]
[399812387,1766693440223,-287.65,0.00014246,2]
[399812388,1766693440233,-200.0,0.00014296,2]
[399812389,1766693440244,-200.0,0.00014296,2]
[399812390,1766693440254,-500.0,0.00014296,2]
[399812391,1766693440264,-32653.34267656,0.00014489,2]
[399812392,1766693440274,-402.31,0.00014494,2]
[399812393,1766693440283,-9999.99,0.00014504,2]
[399812394,1766693440294,-150.99,0.00014504,2]
[399812395,1766693440304,-272.46378967,0.00014798,2]
[399812396,1766693440314,-150.0,0.00014798,2]
[399812397,1766693440324,-500.0,0.00014798,2]
[399812398,1766693440334,-150.0,0.00014798,2]
[399812399,1766693440345,-150.0,0.00014798,2]
[399812400,1766693440356,-500.0,0.00014798,2]
[399812401,1766693440366,-150.0,0.00014798,2]
[399812402,1766693440376,-150.0,0.00014798,2]
[399812403,1766693440387,-150.0,0.00014798,2]
[399812404,1766693440397,-500.0,0.00014798,2]
[399812405,1766693440407,-150.0,0.00014798,2]
[399812406,1766693440417,-150.0,0.00014825,2]
[399812407,1766693440429,-500.0,0.00014825,2]
[399812408,1766693440439,-150.0,0.00014825,2]
[399812409,1766693440448,-150.0,0.00014825,2]
[399812410,1766693440458,-500.0,0.00014825,2]
[399812411,1766693440469,-150.0,0.00014825,2]
[399812412,1766693440479,-257.86837201,0.00014825,2]
[399812413,1766693440488,-150.0,0.00014825,2]
[399812414,1766693440498,-500.0,0.00014825,2]
[399812415,1766693440508,-150.0,0.00014825,2]
[399812416,1766693440519,-1000.0,0.00014829,2]
[399812417,1766693440528,-433.0,0.00014844,2]
[399812418,1766693440538,-307.97721752,0.00014844,2]
[399812419,1766693440548,-500.0,0.00014844,2]
[399812420,1766693440558,-150.0,0.00014853,2]
[399812421,1766693440568,-500.0,0.00014853,2]
[399812422,1766693440578,-249.28059607,0.00014853,2]
[399812423,1766693440588,-150.0,0.00014853,2]
[399812424,1766693440598,-500.0,0.00014853,2]
[399812425,1766693440608,-150.0,0.00014853,2]
[399812426,1766693440619,-150.0,0.00014853,2]
[399812427,1766693440628,-283.35606072,0.00014853,2]
[399812428,1766693440639,-200.0,0.00014853,2]
[399812429,1766693440649,-150.0,0.0001488,2]
[399812430,1766693440658,-632.68005454,0.0001488,2]
[399812431,1766693440668,-150.0,0.0001488,2]
[399812432,1766693440678,-500.0,0.0001488,2]
[399812433,1766693440688,-150.0,0.0001488,2]
[399812434,1766693440698,-150.0,0.0001488,2]
[399812435,1766693440707,-402.31,0.00014885,2]
[399812436,1766693440718,-224.03606775,0.00014908,2]
[399812437,1766693440729,-150.0,0.00014908,2]
[399812438,1766693440739,-500.0,0.00014908,2]
[399812439,1766693440748,-150.0,0.00014908,2]
[399812440,1766693440758,-150.0,0.00014908,2]
[399812441,1766693440768,-175.36246307,0.00014935,2]
[399812442,1766693440778,-500.0,0.00014935,2]
[399812443,1766693440788,-174.90444461,0.00014935,2]
[399812444,1766693440798,-250.0,0.00014935,2]
[399812445,1766693440807,-285.92,0.00014961,2]
[399812446,1766693440817,-594.24474848,0.00014962,2]
[399812447,1766693440827,-32653.34267656,0.00014971,2]
[399812448,1766693440837,-256.0,0.00014986,2]
[399812449,1766693440847,-587.0,0.00014986,2]
[399812450,1766693440857,-2351.0,0.00015058,2]
[399812451,1766693440867,-150.0,0.00015068,2]
[399812452,1766693440877,-150.0,0.00015095,2]
[399812453,1766693440887,-210.96312953,0.00015123,2]
[399812454,1766693440897,-150.0,0.00015288,2]
[399812455,1766693440907,-150.0,0.00015288,2]
[399812456,1766693440917,-150.0,0.00015288,2]
[399812457,1766693440928,-150.0,0.00015288,2]
[399812458,1766693440938,-150.0,0.00015288,2]
[399812459,1766693440948,-217.62219692,0.00015288,2]
[399812460,1766693440958,-150.0,0.00015288,2]
[399812461,1766693440967,-150.0,0.00015288,2]
[399812462,1766693440977,-150.0,0.00015288,2]
[399812463,1766693440987,-150.0,0.00015288,2]
[399812464,1766693440997,-150.0,0.00015288,2]
[399812465,1766693441007,-150.0,0.00015288,2]
[399812466,1766693441017,-150.0,0.00015288,2]
[399812467,1766693441026,-150.0,0.00015288,2]
[399812468,1766693441036,-150.0,0.00015288,2]
[399812469,1766693441046,-150.0,0.00015307,2]
[399812470,1766693441056,-150.0,0.00015314,2]
[399812471,1766693441066,-150.0,0.00015317,2]
[399812472,1766693441076,-150.0,0.00015326,2]
[399812473,1766693441085,-150.0,0.00015327,2]
[399812474,1766693441096,-150.0,0.00015329,2]
[399812475,1766693441107,-150.0,0.00015338,2]
[399812476,1766693441118,-150.0,0.00015341,2]
[399812477,1766693441127,-150.0,0.00015346,2]
[399812478,1766693441138,-150.0,0.00015346,2]
[399812479,1766693441147,-150.0,0.00015356,2]
[399812480,1766693441157,-150.0,0.00015365,2]
[399812481,1766693441168,-150.0,0.00015366,2]
[399812482,1766693441178,-150.0,0.00015367,2]
[399812483,1766693441187,-150.0,0.00015371,2]
[399812484,1766693441198,-150.0,0.00015376,2]
[399812485,1766693441208,-500.0,0.0001538,2]
[399812486,1766693441218,-150.0,0.00015385,2]
[399812487,1766693441228,-150.0,0.00015388,2]
[399812488,1766693441238,-150.0,0.00015388,2]
[399812489,1766693441247,-215.0738,0.00015391,2]
[399812490,1766693441257,-150.0,0.00015394,2]
[399812491,1766693441267,-150.0,0.00015403,2]
[399812492,1766693441277,-150.0,0.00015405,2]
[399812493,1766693441286,-150.0,0.00015405,2]
[399812494,1766693441296,-150.0,0.00015409,2]
[399812495,1766693441306,-150.0,0.00015412,2]
[399812496,1766693441317,-150.0,0.0001542,2]
[399812497,1766693441327,-150.0,0.00015424,2]
[399812498,1766693441337,-150.0,0.00015424,2]
[399812499,1766693441348,-150.0,0.00015434,2]
[399812500,1766693441358,-150.0,0.00015438,2]
[399812501,1766693441367,-150.0,0.00015442,2]
[399812502,1766693441376,-150.0,0.00015442,2]
[399812503,1766693441387,-150.0,0.00015444,2]
[399812504,1766693441397,-150.0,0.00015447,2]
[399812505,1766693441407,-32653.34267656,0.00015453,2]
[399812506,1766693441419,-150.0,0.00015453,2]
[399812507,1766693441429,-150.0,0.00015463,2]
[399812508,1766693441440,-150.0,0.00015463,2]
[399812509,1766693441450,-285.92,0.00015473,2]
[399812510,1766693441460,-150.0,0.00015473,2]
[399812511,1766693441470,-150.0,0.00015481,2]
[399812512,1766693441479,-150.0,0.00015483,2]
[399812513,1766693441489,-150.0,0.00015488,2]
[399812514,1766693441498,-150.0,0.00015488,2]
[399812515,1766693441508,-150.0,0.00015492,2]
[399812516,1766693441517,-150.0,0.00015493,2]
[399812517,1766693441526,-268.61,0.00015493,2]
[399812518,1766693441535,-150.0,0.00015495,2]
[399812519,1766693441544,-150.0,0.000155,2]
[399812520,1766693441554,-150.0,0.000155,2]
[399812521,1766693441564,-150.0,0.00015502,2]
[399812522,1766693441574,-150.0,0.00015519,2]
[399812523,1766693441584,-150.0,0.00015522,2]
[399812524,1766693441593,-150.0,0.00015522,2]
[399812525,1766693441603,-150.0,0.00015527,2]
[399812526,1766693441612,-150.0,0.0001553,2]
[399812527,1766693441622,-150.0,0.00015536,2]
[399812528,1766693441631,-150.0,0.00015537,2]
[399812529,1766693441641,-150.0,0.00015541,2]
[399812530,1766693441651,-150.0,0.00015551,2]
[399812531,1766693441660,-150.0,0.00015553,2]
[399812532,1766693441670,-1600.0,0.00015555,2]
[399812533,1766693441680,-150.0,0.00015558,2]
[399812534,1766693441689,-150.0,0.00015559,2]
[399812535,1766693441699,-150.0,0.00015561,2]
[399812536,1766693441709,-150.0,0.00015578,2]
[399812537,1766693441719,-150.0,0.0001558,2]
[399812538,1766693441728,-150.0,0.00015581,2]
[399812539,1766693441738,-150.0,0.00015581,2]
[399812540,1766693441747,-150.0,0.00015587,2]
[399812541,1766693441756,-150.0,0.00015587,2]
[399812542,1766693441766,-150.0,0.00015597,2]
[399812543,1766693441775,-150.0,0.00015597,2]
[399812544,1766693441784,-150.0,0.000156,2]
[399812545,1766693441794,-150.0,0.00015606,2]
[399812546,1766693441803,-150.0,0.0001561,2]
[399812547,1766693441813,-150.0,0.00015619,2]
[399812548,1766693441822,-150.0,0.0001562,2]
[399812549,1766693441832,-150.0,0.00015627,2]
[399812550,1766693441842,-150.0,0.00015627,2]
[399812551,1766693441852,-150.0,0.00015633,2]
[399812552,1766693441861,-150.0,0.00015635,2]
[399812553,1766693441871,-150.0,0.00015637,2]
[399812554,1766693441880,-150.0,0.00015639,2]
[399812555,1766693441890,-150.0,0.00015639,2]
[399812556,1766693441899,-150.0,0.00015652,2]
[399812557,1766693441909,-150.0,0.00015659,2]
[399812558,1766693441918,-150.0,0.00015659,2]
[399812559,1766693441928,-150.0,0.00015661,2]
[399812560,1766693441939,-150.0,0.00015668,2]
[399812561,1766693441948,-150.0,0.00015674,2]
[399812562,1766693441959,-150.0,0.00015678,2]
[399812563,1766693441970,-150.0,0.00015686,2]
[399812564,1766693441979,-150.0,0.00015687,2]
[399812565,1766693441989,-150.0,0.00015687,2]
[399812566,1766693441999,-150.0,0.00015695,2]
[399812567,1766693442009,-150.0,0.00015698,2]
[399812568,1766693442019,-150.0,0.00015698,2]
[399812569,1766693442029,-500.0,0.00015699,2]
[399812570,1766693442039,-150.0,0.00015702,2]
[399812571,1766693442048,-150.0,0.00015712,2]
[399812572,1766693442059,-150.0,0.00015712,2]
[399812573,1766693442068,-150.0,0.00015712,2]
[399812574,1766693442078,-150.0,0.00015717,2]
[399812575,1766693442088,-268.61,0.00015722,2]
[399812576,1766693442098,-300.0,0.00015724,2]
[399812577,1766693442108,-150.0,0.00015727,2]
[399812578,1766693442118,-150.0,0.00015737,2]
[399812579,1766693442128,-150.0,0.00015737,2]
[399812580,1766693442138,-150.0,0.00015739,2]
[399812581,1766693442148,-150.0,0.00015743,2]
[399812582,1766693442158,-150.0,0.00015751,2]
[399812583,1766693442168,-150.0,0.00015751,2]
[399812584,1766693442178,-150.0,0.00015756,2]
[399812585,1766693442187,-150.0,0.00015756,2]
[399812586,1766693442197,-150.0,0.00015763,2]
[399812587,1766693442207,-150.0,0.00015765,2]
[399812588,1766693442217,-150.0,0.00015773,2]
[399812589,1766693442226,-150.0,0.00015776,2]
[399812590,1766693442236,-150.0,0.00015785,2]
[399812591,1766693442246,-150.0,0.00015786,2]
[399812592,1766693442256,-150.0,0.00015787,2]
[399812593,1766693442267,-150.0,0.00015787,2]
[399812594,1766693442276,-150.0,0.0001579,2]
[399812595,1766693442286,-150.0,0.00015792,2]
[399812596,1766693442296,-150.0,0.00015795,2]
[399812597,1766693442305,-150.0,0.00015815,2]
[399812598,1766693442315,-150.0,0.00015815,2]
[399812600,1766693442324,-150.0,0.00015818,2]
[399812601,1766693442334,-150.0,0.00015826,2]
[399812602,1766693442343,-150.0,0.00015828,2]
[399812603,1766693442357,-150.0,0.00015831,2]
[399812604,1766693442366,-150.0,0.00015834,2]
[399812605,1766693442376,-150.0,0.00015837,2]
[399812606,1766693442385,-300.0,0.00015841,2]
[399812607,1766693442399,-150.0,0.00015844,2]
[399812608,1766693442409,-150.0,0.00015845,2]
[399812609,1766693442418,-150.0,0.00015854,2]
[399812610,1766693442429,-150.0,0.00015867,2]